[Event "Early-Titled-Tuesday-Blitz-September-12-2023"]
[Site "Chess.com"]
[Date "2023.09.12"]
[Round "8"]
[White "Andreikka"]
[Black "PLAYER_2006_M"]
[Result "1-0"]
[WhiteElo "3009"]
[BlackElo "2872"]
[TimeControl "180+1"]
[EndTime "9:28:51 PDT"]
[Termination "Andreikka won on time"]

1. Nf3 {[%clk 0:02:59.6]} 1... Nf6 {[%clk 0:03:00.3]} 2. c4 {[%clk 0:02:58.3]}
2... g6 {[%clk 0:03:00.5]} 3. b3 {[%clk 0:02:58.1]} 3... Bg7 {[%clk 0:02:58.1]}
4. Bb2 {[%clk 0:02:59]} 4... O-O {[%clk 0:02:54.3]} 5. g3 {[%clk 0:02:58.8]}
5... d6 {[%clk 0:02:53.8]} 6. Bg2 {[%clk 0:02:59.3]} 6... e5 {[%clk 0:02:53.8]}
7. O-O {[%clk 0:02:59.9]} 7... a5 {[%clk 0:02:51.3]} 8. Nc3 {[%clk 0:03:00.2]}
8... Re8 {[%clk 0:02:48.3]} 9. d3 {[%clk 0:03:00.3]} 9... c6 {[%clk 0:02:45.8]}
10. a3 {[%clk 0:03:00.9]} 10... Na6 {[%clk 0:02:31.6]} 11. b4 {[%clk 0:03:01.3]}
11... h6 {[%clk 0:02:30.4]} 12. Nd2 {[%clk 0:03:00.2]} 12... Bd7 {[%clk
0:02:25.2]} 13. b5 {[%clk 0:03:00.5]} 13... Nc7 {[%clk 0:02:18.2]} 14. a4 {[%clk
0:03:00.7]} 14... Ne6 {[%clk 0:02:13.7]} 15. Ba3 {[%clk 0:02:58.8]} 15... Qc7
{[%clk 0:02:08.6]} 16. Rb1 {[%clk 0:02:41.7]} 16... h5 {[%clk 0:01:51]} 17. bxc6
{[%clk 0:02:30.8]} 17... bxc6 {[%clk 0:01:48]} 18. Nde4 {[%clk 0:02:31.1]} 18...
Nxe4 {[%clk 0:01:41.7]} 19. Nxe4 {[%clk 0:02:32]} 19... c5 {[%clk 0:01:40.1]}
20. Rb7 {[%clk 0:02:32.2]} 20... Qxb7 {[%clk 0:01:27.5]} 21. Nf6+ {[%clk
0:02:29.9]} 21... Bxf6 {[%clk 0:01:28.1]} 22. Bxb7 {[%clk 0:02:30.1]} 22... Rab8
{[%clk 0:01:28.5]} 23. Bg2 {[%clk 0:02:29.6]} 23... Nd4 {[%clk 0:01:25.5]} 24.
e3 {[%clk 0:02:28.1]} 24... Nb3 {[%clk 0:01:19.9]} 25. Bd5 {[%clk 0:02:24.9]}
25... Bxa4 {[%clk 0:01:16]} 26. Bb2 {[%clk 0:02:22.8]} 26... Bd7 {[%clk
0:01:09.9]} 27. f4 {[%clk 0:02:23]} 27... Bg4 {[%clk 0:00:52.6]} 28. Qc2 {[%clk
0:02:12.5]} 28... Be6 {[%clk 0:00:43.6]} 29. Bxe6 {[%clk 0:01:55.1]} 29... Rxe6
{[%clk 0:00:34.4]} 30. f5 {[%clk 0:01:55.2]} 30... gxf5 {[%clk 0:00:35.1]} 31.
Rxf5 {[%clk 0:01:53.1]} 31... a4 {[%clk 0:00:35.8]} 32. Rxh5 {[%clk 0:01:47.1]}
32... Bg7 {[%clk 0:00:35.8]} 33. Rf5 {[%clk 0:01:44]} 33... Rf6 {[%clk
0:00:27.6]} 34. Rxf6 {[%clk 0:01:33.4]} 34... Bxf6 {[%clk 0:00:28.5]} 35. Kf2
{[%clk 0:01:29.9]} 35... Kg7 {[%clk 0:00:24.7]} 36. Ba3 {[%clk 0:01:29.1]} 36...
e4 {[%clk 0:00:23]} 37. dxe4 {[%clk 0:01:19.7]} 37... Na1 {[%clk 0:00:16.8]} 38.
Qxa4 {[%clk 0:01:18]} 38... Be5 {[%clk 0:00:12.8]} 39. Ke2 {[%clk 0:01:07.8]}
39... Rb1 {[%clk 0:00:12.3]} 40. Qe8 {[%clk 0:00:51.9]} 40... Nb3 {[%clk
0:00:09.5]} 41. Qb5 {[%clk 0:00:49.3]} 41... Kf6 {[%clk 0:00:04.3]} 42. Kd3
{[%clk 0:00:48.9]} 42... Kg7 {[%clk 0:00:01.5]} 43. Kc2 {[%clk 0:00:48.6]} 43...
Rh1 {[%clk 0:00:02.1]} 44. Kxb3 {[%clk 0:00:48.1]} 44... Rxh2 {[%clk 0:00:03]}
45. Qd7 {[%clk 0:00:45.1]} 45... Rg2 {[%clk 0:00:02.6]} 46. g4 {[%clk
0:00:44.2]} 46... Rg3 {[%clk 0:00:02.4]} 47. Bc1 {[%clk 0:00:44.5]} 47... Rg1
{[%clk 0:00:02.8]} 48. Bd2 {[%clk 0:00:44.8]} 48... Rg2 {[%clk 0:00:02.6]} 49.
Bc3 {[%clk 0:00:45.1]} 1-0

[Event "Early-Titled-Tuesday-Blitz-September-12-2023"]
[Site "Chess.com"]
[Date "2023.09.12"]
[Round "8"]
[White "FARIZA2018"]
[Black "RCone"]
[Result "1-0"]
[WhiteElo "2519"]
[BlackElo "2346"]
[TimeControl "180+1"]
[EndTime "9:28:51 PDT"]
[Termination "FARIZA2018 won on time"]

1. e4 {[%clk 0:03:00.9]} 1... d6 {[%clk 0:02:57.3]} 2. d4 {[%clk 0:03:00.9]}
2... Nf6 {[%clk 0:02:55.9]} 3. Nc3 {[%clk 0:03:01.2]} 3... g6 {[%clk 0:02:56.4]}
4. Be3 {[%clk 0:03:01.3]} 4... c6 {[%clk 0:02:56.1]} 5. a4 {[%clk 0:03:00.5]}
5... Bg7 {[%clk 0:02:53.8]} 6. f3 {[%clk 0:03:00.7]} 6... Nbd7 {[%clk
0:02:51.4]} 7. Qd2 {[%clk 0:03:00.7]} 7... O-O {[%clk 0:02:47.1]} 8. g4 {[%clk
0:03:00.6]} 8... e5 {[%clk 0:02:43.3]} 9. Nge2 {[%clk 0:03:00.7]} 9... d5 {[%clk
0:02:41.3]} 10. g5 {[%clk 0:02:52.6]} 10... exd4 {[%clk 0:02:41.1]} 11. Nxd4
{[%clk 0:02:52.2]} 11... Nh5 {[%clk 0:02:40]} 12. O-O-O {[%clk 0:02:52.2]} 12...
dxe4 {[%clk 0:02:35.9]} 13. Nxe4 {[%clk 0:02:49.9]} 13... Ne5 {[%clk 0:02:21.9]}
14. Be2 {[%clk 0:02:37.1]} 14... Qe7 {[%clk 0:02:21.1]} 15. Ng3 {[%clk
0:02:33.1]} 15... Nxg3 {[%clk 0:02:13.2]} 16. hxg3 {[%clk 0:02:33]} 16... Re8
{[%clk 0:02:12.2]} 17. Bf4 {[%clk 0:02:25]} 17... Be6 {[%clk 0:02:01.1]} 18. Kb1
{[%clk 0:02:23.7]} 18... Rad8 {[%clk 0:01:48.2]} 19. Qe1 {[%clk 0:02:19.7]}
19... Bd5 {[%clk 0:01:39.5]} 20. Qf2 {[%clk 0:01:51.5]} 20... Nc4 {[%clk
0:01:33.5]} 21. Bxc4 {[%clk 0:01:42]} 21... Bxc4 {[%clk 0:01:34.4]} 22. Qh2
{[%clk 0:00:56.4]} 22... Rxd4 {[%clk 0:01:16.9]} 23. Qxh7+ {[%clk 0:00:54.2]}
23... Kf8 {[%clk 0:01:16.9]} 24. Rxd4 {[%clk 0:00:44.7]} 24... Bxd4 {[%clk
0:01:12.6]} 25. Rd1 {[%clk 0:00:44.3]} 25... c5 {[%clk 0:01:06.5]} 26. c3 {[%clk
0:00:39.3]} 26... Qe2 {[%clk 0:00:55]} 27. Bd6+ {[%clk 0:00:35.6]} 27... Re7
{[%clk 0:00:54.7]} 28. Rxd4 {[%clk 0:00:32.4]} 28... Qe1+ {[%clk 0:00:44.4]} 29.
Kc2 {[%clk 0:00:31.1]} 29... Qe2+ {[%clk 0:00:18.3]} 30. Rd2 {[%clk 0:00:30.5]}
30... Bd3+ {[%clk 0:00:18]} 31. Kb3 {[%clk 0:00:28.6]} 31... Qe6+ {[%clk
0:00:11.6]} 32. Ka3 {[%clk 0:00:28.5]} 32... Ke8 {[%clk 0:00:10.1]} 33. Rxd3
{[%clk 0:00:25.8]} 33... c4 {[%clk 0:00:04.9]} 34. Qg8+ {[%clk 0:00:21.6]} 34...
Kd7 {[%clk 0:00:04.6]} 35. Bxe7+ {[%clk 0:00:20.4]} 35... cxd3 {[%clk
0:00:04.9]} 36. Qd8+ {[%clk 0:00:20.7]} 36... Kc6 {[%clk 0:00:05.4]} 37. Bb4
{[%clk 0:00:16.6]} 1-0

[Event "Early-Titled-Tuesday-Blitz-September-12-2023"]
[Site "Chess.com"]
[Date "2023.09.12"]
[Round "8"]
[White "jk13"]
[Black "Jaka_Brilej"]
[Result "1-0"]
[WhiteElo "2675"]
[BlackElo "2444"]
[TimeControl "180+1"]
[EndTime "9:28:52 PDT"]
[Termination "jk13 won by resignation"]

1. e4 {[%clk 0:03:00.9]} 1... e6 {[%clk 0:02:57.7]} 2. d3 {[%clk 0:02:59.4]}
2... d5 {[%clk 0:02:52.3]} 3. Qe2 {[%clk 0:02:59.2]} 3... dxe4 {[%clk 0:02:39]}
4. dxe4 {[%clk 0:02:59]} 4... Nc6 {[%clk 0:02:39.3]} 5. Nf3 {[%clk 0:02:59.9]}
5... e5 {[%clk 0:02:39.7]} 6. g3 {[%clk 0:02:58.1]} 6... Bc5 {[%clk 0:02:35.9]}
7. Bg2 {[%clk 0:02:58.3]} 7... Nf6 {[%clk 0:02:36.4]} 8. O-O {[%clk 0:02:58.5]}
8... O-O {[%clk 0:02:36.2]} 9. c3 {[%clk 0:02:58.7]} 9... a5 {[%clk 0:02:36]}
10. a4 {[%clk 0:02:56.1]} 10... b6 {[%clk 0:02:36.2]} 11. Rd1 {[%clk 0:02:55.5]}
11... Qe7 {[%clk 0:02:35.9]} 12. h3 {[%clk 0:02:54.4]} 12... Ba6 {[%clk
0:02:32.1]} 13. Qe1 {[%clk 0:02:54.8]} 13... Rfd8 {[%clk 0:02:31.8]} 14. Rxd8+
{[%clk 0:02:54]} 14... Rxd8 {[%clk 0:02:31.3]} 15. Bg5 {[%clk 0:02:54.5]} 15...
Qe6 {[%clk 0:02:25.6]} 16. Nbd2 {[%clk 0:02:52.5]} 16... h6 {[%clk 0:02:24.3]}
17. Bxf6 {[%clk 0:02:52.5]} 17... Qxf6 {[%clk 0:02:21.8]} 18. Bf1 {[%clk
0:02:45.9]} 18... Bxf1 {[%clk 0:02:17.9]} 19. Qxf1 {[%clk 0:02:40.2]} 19... Ne7
{[%clk 0:02:08.6]} 20. Kg2 {[%clk 0:02:37.9]} 20... Ng6 {[%clk 0:02:08.2]} 21.
Nc4 {[%clk 0:02:18.9]} 21... Qe6 {[%clk 0:02:03.3]} 22. b3 {[%clk 0:02:11.9]}
22... f6 {[%clk 0:02:03.1]} 23. Rd1 {[%clk 0:02:11.4]} 23... Qe7 {[%clk
0:01:55.3]} 24. Rd3 {[%clk 0:02:08.7]} 24... Nf8 {[%clk 0:01:53.4]} 25. Qd1
{[%clk 0:02:07.1]} 25... Ne6 {[%clk 0:01:50]} 26. Nh4 {[%clk 0:02:05.1]} 26...
Rxd3 {[%clk 0:01:47.8]} 27. Qxd3 {[%clk 0:02:04.8]} 27... Qd8 {[%clk 0:01:48.4]}
28. Qf3 {[%clk 0:01:57.7]} 28... Qd7 {[%clk 0:01:36.9]} 29. Nf5 {[%clk
0:01:54.9]} 29... Ng5 {[%clk 0:01:26.5]} 30. Qe2 {[%clk 0:01:41]} 30... Qc6
{[%clk 0:01:26.4]} 31. Nd2 {[%clk 0:01:38.8]} 31... Bf8 {[%clk 0:01:17.5]} 32.
h4 {[%clk 0:01:34.1]} 32... Ne6 {[%clk 0:01:17.7]} 33. Qd3 {[%clk 0:01:25.4]}
33... Nc5 {[%clk 0:01:05.1]} 34. Qc4+ {[%clk 0:01:20]} 34... Qe6 {[%clk
0:01:02.5]} 35. Qxe6+ {[%clk 0:01:10.9]} 35... Nxe6 {[%clk 0:01:03.4]} 36. h5
{[%clk 0:01:04.3]} 36... Kf7 {[%clk 0:01:03.2]} 37. Kf3 {[%clk 0:01:04.2]} 37...
Bc5 {[%clk 0:00:44.3]} 38. Ke2 {[%clk 0:01:04.4]} 38... Ng5 {[%clk 0:00:39.7]}
39. f3 {[%clk 0:00:55.7]} 39... Ne6 {[%clk 0:00:20.6]} 40. Kd3 {[%clk
0:00:54.4]} 40... Ke8 {[%clk 0:00:20.7]} 41. Kc4 {[%clk 0:00:54]} 41... Kd7
{[%clk 0:00:20.8]} 42. b4 {[%clk 0:00:51.2]} 42... axb4 {[%clk 0:00:20.5]} 43.
cxb4 {[%clk 0:00:51.6]} 43... Bf2 {[%clk 0:00:21]} 44. a5 {[%clk 0:00:46.9]}
44... bxa5 {[%clk 0:00:21.1]} 45. bxa5 {[%clk 0:00:47.6]} 45... Kc6 {[%clk
0:00:21.8]} 46. Nb3 {[%clk 0:00:42.4]} 46... Ba7 {[%clk 0:00:19.1]} 47. Nc1
{[%clk 0:00:40.5]} 47... Nd4 {[%clk 0:00:16.2]} 48. Nxd4+ {[%clk 0:00:37.2]}
48... Bxd4 {[%clk 0:00:15.7]} 49. Nd3 {[%clk 0:00:34.8]} 49... Ba7 {[%clk
0:00:13.2]} 50. Nb4+ {[%clk 0:00:34.6]} 50... Kd6 {[%clk 0:00:12.7]} 51. Kb5
{[%clk 0:00:33.8]} 51... Bf2 {[%clk 0:00:11.7]} 52. g4 {[%clk 0:00:33.4]} 52...
Be1 {[%clk 0:00:08.5]} 53. a6 {[%clk 0:00:31.7]} 53... Bf2 {[%clk 0:00:06.6]}
54. Nc6 {[%clk 0:00:31.4]} 1-0

[Event "Early-Titled-Tuesday-Blitz-September-12-2023"]
[Site "Chess.com"]
[Date "2023.09.12"]
[Round "8"]
[White "Polish_fighter3000"]
[Black "Parhamov"]
[Result "1-0"]
[WhiteElo "3091"]
[BlackElo "3108"]
[TimeControl "180+1"]
[EndTime "9:28:53 PDT"]
[Termination "Polish_fighter3000 won by resignation"]

1. e4 {[%clk 0:03:00.9]} 1... c5 {[%clk 0:02:56]} 2. Nf3 {[%clk 0:03:00.9]} 2...
e6 {[%clk 0:02:55.8]} 3. d4 {[%clk 0:02:59.2]} 3... cxd4 {[%clk 0:02:56.1]} 4.
Nxd4 {[%clk 0:03:00.1]} 4... a6 {[%clk 0:02:53.9]} 5. c4 {[%clk 0:02:59.9]} 5...
Qc7 {[%clk 0:02:53.1]} 6. Nc3 {[%clk 0:02:59.3]} 6... Nf6 {[%clk 0:02:53.4]} 7.
a3 {[%clk 0:02:58.2]} 7... h5 {[%clk 0:02:53]} 8. Be2 {[%clk 0:02:48.5]} 8...
Nc6 {[%clk 0:02:52.7]} 9. Nf3 {[%clk 0:02:41.9]} 9... Bd6 {[%clk 0:02:41.1]} 10.
h3 {[%clk 0:02:25.4]} 10... Ne5 {[%clk 0:02:35.9]} 11. O-O {[%clk 0:02:16.5]}
11... b6 {[%clk 0:02:22.6]} 12. Be3 {[%clk 0:02:13.1]} 12... Bb7 {[%clk
0:02:16.9]} 13. Rc1 {[%clk 0:02:11]} 13... Bc5 {[%clk 0:02:00.3]} 14. Qd2 {[%clk
0:01:25.1]} 14... Nxe4 {[%clk 0:01:42.1]} 15. Nxe4 {[%clk 0:01:23.5]} 15... Bxe4
{[%clk 0:01:42.8]} 16. Nxe5 {[%clk 0:01:22.5]} 16... Qxe5 {[%clk 0:01:42.9]} 17.
b4 {[%clk 0:01:22.9]} 17... Bxe3 {[%clk 0:01:19.8]} 18. Qxe3 {[%clk 0:01:23.8]}
18... Qf5 {[%clk 0:01:20]} 19. Qxb6 {[%clk 0:01:14.6]} 19... O-O {[%clk
0:01:01.7]} 20. Qd4 {[%clk 0:00:56.1]} 20... Qg6 {[%clk 0:00:54.5]} 21. f3
{[%clk 0:00:53.4]} 21... Bc6 {[%clk 0:00:54.7]} 22. Qd6 {[%clk 0:00:45.5]} 22...
Qg5 {[%clk 0:00:47.4]} 23. Rc3 {[%clk 0:00:43.7]} 23... f5 {[%clk 0:00:29.6]}
24. Rd1 {[%clk 0:00:33.5]} 24... Rac8 {[%clk 0:00:14.9]} 25. Qe5 {[%clk
0:00:19.7]} 25... h4 {[%clk 0:00:07]} 26. Kf2 {[%clk 0:00:19.4]} 26... Qd8
{[%clk 0:00:04.4]} 27. Rd6 {[%clk 0:00:16.6]} 27... Rf6 {[%clk 0:00:04.3]} 28.
Qd4 {[%clk 0:00:10.8]} 28... Rg6 {[%clk 0:00:02.5]} 29. Bf1 {[%clk 0:00:10.5]}
29... Qg5 {[%clk 0:00:01.9]} 30. b5 {[%clk 0:00:10.4]} 30... axb5 {[%clk
0:00:02]} 31. cxb5 {[%clk 0:00:10.3]} 31... Bb7 {[%clk 0:00:02.6]} 32. Rxd7
{[%clk 0:00:04.9]} 32... Qg3+ {[%clk 0:00:02.5]} 33. Kg1 {[%clk 0:00:05]} 33...
Rxc3 {[%clk 0:00:02.5]} 34. Qxc3 {[%clk 0:00:05.1]} 34... Bxf3 {[%clk
0:00:03.4]} 35. Rd3 {[%clk 0:00:05.2]} 35... Bxg2 {[%clk 0:00:01.6]} 36. Rxg3
{[%clk 0:00:05.1]} 36... Rxg3 {[%clk 0:00:01.9]} 37. Qxg3 {[%clk 0:00:05.3]}
37... hxg3 {[%clk 0:00:02.3]} 38. Bxg2 {[%clk 0:00:05.8]} 1-0

[Event "Early-Titled-Tuesday-Blitz-September-12-2023"]
[Site "Chess.com"]
[Date "2023.09.12"]
[Round "8"]
[White "farzadbfd"]
[Black "Herman-NY"]
[Result "1-0"]
[WhiteElo "2703"]
[BlackElo "2540"]
[TimeControl "180+1"]
[EndTime "9:28:53 PDT"]
[Termination "farzadbfd won by resignation"]

1. d4 {[%clk 0:03:00.9]} 1... Nf6 {[%clk 0:03:00.1]} 2. Nf3 {[%clk 0:02:59.3]}
2... g6 {[%clk 0:03:00.6]} 3. Bg5 {[%clk 0:02:58.7]} 3... Bg7 {[%clk 0:03:01]}
4. e3 {[%clk 0:02:59.4]} 4... O-O {[%clk 0:03:01.3]} 5. Be2 {[%clk 0:02:59.7]}
5... c5 {[%clk 0:02:59.7]} 6. c3 {[%clk 0:02:59.6]} 6... d6 {[%clk 0:02:43.4]}
7. O-O {[%clk 0:02:59.6]} 7... Nbd7 {[%clk 0:02:19.6]} 8. Nbd2 {[%clk
0:02:58.5]} 8... b6 {[%clk 0:02:12.8]} 9. a4 {[%clk 0:02:59]} 9... a6 {[%clk
0:02:11.7]} 10. b4 {[%clk 0:02:55]} 10... cxb4 {[%clk 0:01:56.9]} 11. cxb4
{[%clk 0:02:55]} 11... Bb7 {[%clk 0:01:57.8]} 12. Rc1 {[%clk 0:02:52.7]} 12...
Rc8 {[%clk 0:01:52.9]} 13. Qb3 {[%clk 0:02:50.6]} 13... h6 {[%clk 0:01:08.1]}
14. Bh4 {[%clk 0:02:49.2]} 14... g5 {[%clk 0:01:05.3]} 15. Bg3 {[%clk
0:02:49.4]} 15... Nb8 {[%clk 0:00:24.6]} 16. Nc4 {[%clk 0:02:20.8]} 16... Ne4
{[%clk 0:00:19.3]} 17. a5 {[%clk 0:02:14.6]} 17... b5 {[%clk 0:00:17.1]} 18. Nb6
{[%clk 0:02:14.8]} 18... Rxc1 {[%clk 0:00:16.5]} 19. Rxc1 {[%clk 0:02:15.7]}
19... Nd7 {[%clk 0:00:15]} 20. Nd5 {[%clk 0:02:04.5]} 20... Ndf6 {[%clk
0:00:14.3]} 21. Nb6 {[%clk 0:01:55]} 21... Nd7 {[%clk 0:00:14.3]} 22. Nd5 {[%clk
0:01:55]} 22... Ndf6 {[%clk 0:00:14.6]} 23. Nxf6+ {[%clk 0:01:54.5]} 23... Bxf6
{[%clk 0:00:14.7]} 24. Bd3 {[%clk 0:01:39.3]} 24... Qd7 {[%clk 0:00:12.9]} 25.
Qb1 {[%clk 0:01:31.7]} 25... Nxg3 {[%clk 0:00:10.2]} 26. hxg3 {[%clk 0:01:32.6]}
26... Rc8 {[%clk 0:00:09.9]} 27. Kf1 {[%clk 0:01:23]} 27... Rxc1+ {[%clk
0:00:08.4]} 28. Qxc1 {[%clk 0:01:23.9]} 28... Qc8 {[%clk 0:00:07.3]} 29. Qxc8+
{[%clk 0:01:16.9]} 29... Bxc8 {[%clk 0:00:08.2]} 30. Be4 {[%clk 0:01:15.1]}
30... e6 {[%clk 0:00:08.3]} 31. Ne1 {[%clk 0:01:02.3]} 31... Kf8 {[%clk
0:00:05.1]} 32. Ke2 {[%clk 0:00:56.2]} 32... Ke7 {[%clk 0:00:05.6]} 33. f3
{[%clk 0:00:34.9]} 33... Kd7 {[%clk 0:00:05.4]} 34. d5 {[%clk 0:00:28.7]} 34...
h5 {[%clk 0:00:03.9]} 35. Nc2 {[%clk 0:00:26.4]} 35... h4 {[%clk 0:00:03.6]} 36.
g4 {[%clk 0:00:24.5]} 36... Be5 {[%clk 0:00:02.9]} 37. Kd3 {[%clk 0:00:22.5]}
37... Ke7 {[%clk 0:00:03.3]} 38. Nd4 {[%clk 0:00:20.6]} 38... Bd7 {[%clk
0:00:03.2]} 39. dxe6 {[%clk 0:00:19.6]} 39... fxe6 {[%clk 0:00:03.3]} 40. Bb7
{[%clk 0:00:20.3]} 40... d5 {[%clk 0:00:02]} 41. Bxa6 {[%clk 0:00:20.5]} 41...
Bd6 {[%clk 0:00:02.6]} 42. Bxb5 {[%clk 0:00:19.5]} 42... Bxb4 {[%clk 0:00:02.6]}
43. Bxd7 {[%clk 0:00:19.6]} 43... Kxd7 {[%clk 0:00:03.5]} 44. a6 {[%clk
0:00:20.1]} 44... Bc5 {[%clk 0:00:04.1]} 45. e4 {[%clk 0:00:19.2]} 45... dxe4+
{[%clk 0:00:03.6]} 46. Kxe4 {[%clk 0:00:20.1]} 46... Kc8 {[%clk 0:00:03.2]} 47.
Nxe6 {[%clk 0:00:20.3]} 1-0

[Event "Early-Titled-Tuesday-Blitz-September-12-2023"]
[Site "Chess.com"]
[Date "2023.09.12"]
[Round "8"]
[White "mamey78"]
[Black "Itk04"]
[Result "1-0"]
[WhiteElo "2620"]
[BlackElo "2749"]
[TimeControl "180+1"]
[EndTime "9:28:54 PDT"]
[Termination "mamey78 won by resignation"]

1. e4 {[%clk 0:03:00.9]} 1... e6 {[%clk 0:02:59.7]} 2. d4 {[%clk 0:02:59.2]}
2... d5 {[%clk 0:02:59.9]} 3. e5 {[%clk 0:02:59.4]} 3... c5 {[%clk 0:02:59.6]}
4. c3 {[%clk 0:02:59.4]} 4... Nc6 {[%clk 0:02:59.9]} 5. Nf3 {[%clk 0:02:58.2]}
5... Qb6 {[%clk 0:03:00]} 6. Bd3 {[%clk 0:02:55.1]} 6... cxd4 {[%clk 0:03:00.4]}
7. O-O {[%clk 0:02:55]} 7... Bd7 {[%clk 0:02:48.6]} 8. Nbd2 {[%clk 0:02:54.5]}
8... Nge7 {[%clk 0:02:36.5]} 9. Nb3 {[%clk 0:02:49.8]} 9... dxc3 {[%clk
0:02:33.7]} 10. bxc3 {[%clk 0:02:50.7]} 10... Qc7 {[%clk 0:02:30.3]} 11. Re1
{[%clk 0:02:50]} 11... Ng6 {[%clk 0:02:27.7]} 12. Qe2 {[%clk 0:02:49.7]} 12...
Rc8 {[%clk 0:02:19.9]} 13. Nbd4 {[%clk 0:02:44.1]} 13... a6 {[%clk 0:02:16.6]}
14. h4 {[%clk 0:02:35.6]} 14... Nxd4 {[%clk 0:01:49.4]} 15. cxd4 {[%clk
0:02:34.9]} 15... Ne7 {[%clk 0:01:44.2]} 16. h5 {[%clk 0:02:30.7]} 16... h6
{[%clk 0:01:44.3]} 17. Be3 {[%clk 0:02:11.6]} 17... Nc6 {[%clk 0:01:39.1]} 18.
Rac1 {[%clk 0:02:09.3]} 18... Ba3 {[%clk 0:01:38.4]} 19. Rb1 {[%clk 0:01:53.6]}
19... b5 {[%clk 0:01:20.2]} 20. Nh4 {[%clk 0:01:31.4]} 20... Na5 {[%clk
0:00:58.1]} 21. Qg4 {[%clk 0:01:27.8]} 21... Kf8 {[%clk 0:00:58.6]} 22. Bd2
{[%clk 0:00:59]} 22... Nc4 {[%clk 0:00:55.4]} 23. Bf4 {[%clk 0:00:59.2]} 23...
Be7 {[%clk 0:00:50.6]} 24. Rb3 {[%clk 0:00:58.3]} 24... Qd8 {[%clk 0:00:43.8]}
25. Nf3 {[%clk 0:00:46.8]} 25... Qa5 {[%clk 0:00:41.6]} 26. Bb1 {[%clk
0:00:43.9]} 26... Qd8 {[%clk 0:00:30.7]} 27. Nh2 {[%clk 0:00:42]} 27... a5
{[%clk 0:00:29.8]} 28. Rg3 {[%clk 0:00:41.5]} 28... Rg8 {[%clk 0:00:17.3]} 29.
Bxh6 {[%clk 0:00:40.2]} 29... Bh4 {[%clk 0:00:16.1]} 30. Bxg7+ {[%clk
0:00:38.4]} 30... Ke8 {[%clk 0:00:16.7]} 31. Rf3 {[%clk 0:00:28.7]} 31... Qg5
{[%clk 0:00:16.5]} 32. h6 {[%clk 0:00:24.6]} 32... Nd2 {[%clk 0:00:11.1]} 33.
Rf4 {[%clk 0:00:19]} 33... Nxb1 {[%clk 0:00:05.9]} 34. Rxb1 {[%clk 0:00:17.8]}
34... Kd8 {[%clk 0:00:04.7]} 35. Qxh4 {[%clk 0:00:17.5]} 35... Qxh4 {[%clk
0:00:04.6]} 36. Rxh4 {[%clk 0:00:17.2]} 36... Kc7 {[%clk 0:00:04.7]} 37. Bf6
{[%clk 0:00:16.4]} 37... Kb6 {[%clk 0:00:05]} 38. h7 {[%clk 0:00:16.8]} 38...
Rh8 {[%clk 0:00:05.4]} 39. Bxh8 {[%clk 0:00:16.5]} 39... Rxh8 {[%clk 0:00:06.3]}
40. Rc1 {[%clk 0:00:16.7]} 40... b4 {[%clk 0:00:06.5]} 41. Ng4 {[%clk 0:00:17]}
41... a4 {[%clk 0:00:06.9]} 42. Nf6 {[%clk 0:00:17.6]} 42... Bb5 {[%clk
0:00:07.1]} 43. Rg4 {[%clk 0:00:16.2]} 43... b3 {[%clk 0:00:06.2]} 44. axb3
{[%clk 0:00:16]} 44... axb3 {[%clk 0:00:07.1]} 45. Rb1 {[%clk 0:00:16.2]} 1-0

[Event "Early-Titled-Tuesday-Blitz-September-12-2023"]
[Site "Chess.com"]
[Date "2023.09.12"]
[Round "8"]
[White "Alex_Banzea"]
[Black "gaby_przz"]
[Result "1-0"]
[WhiteElo "2628"]
[BlackElo "2427"]
[TimeControl "180+1"]
[EndTime "9:28:58 PDT"]
[Termination "Alex_Banzea won on time"]

1. d4 {[%clk 0:03:00.9]} 1... d5 {[%clk 0:02:59.1]} 2. Nc3 {[%clk 0:03:00.6]}
2... Nf6 {[%clk 0:02:57.1]} 3. Bf4 {[%clk 0:03:01]} 3... a6 {[%clk 0:02:48]} 4.
e3 {[%clk 0:03:00.8]} 4... e6 {[%clk 0:02:48.6]} 5. a3 {[%clk 0:02:59.9]} 5...
c5 {[%clk 0:02:49]} 6. Nf3 {[%clk 0:02:58.1]} 6... Nc6 {[%clk 0:02:49.3]} 7. h3
{[%clk 0:02:55.9]} 7... Bd6 {[%clk 0:02:46.2]} 8. dxc5 {[%clk 0:02:56.1]} 8...
Bxc5 {[%clk 0:02:42.9]} 9. Bd3 {[%clk 0:02:55.6]} 9... O-O {[%clk 0:02:42.8]}
10. O-O {[%clk 0:02:56.2]} 10... h6 {[%clk 0:02:32.4]} 11. e4 {[%clk 0:02:56.3]}
11... Be7 {[%clk 0:02:20.8]} 12. Re1 {[%clk 0:02:50.2]} 12... d4 {[%clk
0:02:17.7]} 13. Ne2 {[%clk 0:02:44]} 13... Nd7 {[%clk 0:02:18.2]} 14. e5 {[%clk
0:02:43.6]} 14... Nc5 {[%clk 0:02:18.6]} 15. Ng3 {[%clk 0:02:42.2]} 15... Qd5
{[%clk 0:02:06.3]} 16. Qd2 {[%clk 0:02:30]} 16... Nxd3 {[%clk 0:02:04.8]} 17.
cxd3 {[%clk 0:02:14.3]} 17... g5 {[%clk 0:01:50.5]} 18. Nxg5 {[%clk 0:01:51.5]}
18... hxg5 {[%clk 0:01:51.4]} 19. Bxg5 {[%clk 0:01:51.9]} 19... Rd8 {[%clk
0:01:33.4]} 20. Ne4 {[%clk 0:01:16.8]} 20... Kf8 {[%clk 0:01:20.2]} 21. Nf6
{[%clk 0:00:47.6]} 21... Bxf6 {[%clk 0:01:18.4]} 22. Bxf6 {[%clk 0:00:48.5]}
22... Ke8 {[%clk 0:00:57]} 23. Qg5 {[%clk 0:00:46.5]} 23... Kd7 {[%clk
0:00:53.6]} 24. Bxd8 {[%clk 0:00:41.7]} 24... Nxd8 {[%clk 0:00:54.5]} 25. h4
{[%clk 0:00:41.7]} 25... Nc6 {[%clk 0:00:37.9]} 26. h5 {[%clk 0:00:36.7]} 26...
Ne7 {[%clk 0:00:37.8]} 27. h6 {[%clk 0:00:34.1]} 27... Ng6 {[%clk 0:00:37.8]}
28. h7 {[%clk 0:00:31.1]} 28... b6 {[%clk 0:00:22.9]} 29. Qf6 {[%clk 0:00:06.6]}
29... Nh8 {[%clk 0:00:15.3]} 30. Re4 {[%clk 0:00:02.7]} 30... Bb7 {[%clk
0:00:14.8]} 31. Rc1 {[%clk 0:00:02.7]} 31... Re8 {[%clk 0:00:10.2]} 32. Rc4
{[%clk 0:00:02.7]} 32... Qb5 {[%clk 0:00:02.4]} 33. Rexd4+ {[%clk 0:00:02.2]}
33... Bd5 {[%clk 0:00:03]} 34. Rb4 {[%clk 0:00:01.9]} 34... Qc5 {[%clk
0:00:01.9]} 35. Rg4 {[%clk 0:00:01.7]} 35... Qc1+ {[%clk 0:00:02]} 36. Kh2
{[%clk 0:00:02.3]} 36... Ng6 {[%clk 0:00:01.7]} 37. Rxg6 {[%clk 0:00:01.9]}
37... fxg6 {[%clk 0:00:01.8]} 38. h8=Q {[%clk 0:00:02.3]} 38... Rxh8+ {[%clk
0:00:02]} 39. Qxh8 {[%clk 0:00:03.2]} 1-0